[Event "Titled Tuesday Blitz August 24 2021"]
[White "Jarovinsky, Alexey"]
[Black "Woodward, Andy"]
[WhiteFideId "14115131"]
[BlackFideId "30953499"]
[WhiteElo "2446"]
[BlackElo "2137"]
[Result "0-1"]
[Round "06"]
[TimeControl "180+1"]
[Date "2021.08.24"]
[WhiteClock "0:00:07"]
[BlackClock "0:00:06"]

1. Nc3 {[%clk 0:02:15]}  d5 {[%clk 0:02:55]} 2. e4 {[%clk 0:02:13]}  dxe4 {[%clk 0:02:52]} 3. Nxe4 {[%clk 0:02:14]}  Nf6 {[%clk 0:02:53]} 4. Ng3 {[%clk 0:02:13]}  e5 {[%clk 0:02:50]} 5. Bc4 {[%clk 0:02:12]}  Bd6 {[%clk 0:02:49]} 6. Nf3 {[%clk 0:02:07]}  O-O {[%clk 0:02:49]} 7. O-O {[%clk 0:02:06]}  e4 {[%clk 0:02:45]} 8. Ng5 {[%clk 0:02:00]}  Bxg3 {[%clk 0:02:04]} 9. hxg3 {[%clk 0:02:01]}  h6 {[%clk 0:02:04]} 10. Nh3 {[%clk 0:02:01]}  Bg4 {[%clk 0:02:03]} 11. Be2 {[%clk 0:01:55]}  Bxe2 {[%clk 0:01:41]} 12. Qxe2 {[%clk 0:01:56]}  Nc6 {[%clk 0:01:41]} 13. Nf4 {[%clk 0:01:51]}  Nd4 {[%clk 0:01:35]} 14. Qd1 {[%clk 0:01:50]}  Qd7 {[%clk 0:01:28]} 15. d3 {[%clk 0:01:48]}  g5 {[%clk 0:01:08]} 16. Ne2 {[%clk 0:01:45]}  Rad8 {[%clk 0:00:56]} 17. Be3 {[%clk 0:01:41]}  Nxe2+ {[%clk 0:00:54]} 18. Qxe2 {[%clk 0:01:42]}  exd3 {[%clk 0:00:55]} 19. cxd3 {[%clk 0:01:41]}  Qxd3 {[%clk 0:00:55]} 20. Qf3 {[%clk 0:01:39]}  Qa6 {[%clk 0:00:43]} 21. Rad1 {[%clk 0:01:34]}  Qc6 {[%clk 0:00:18]} 22. Qxc6 {[%clk 0:01:16]}  bxc6 {[%clk 0:00:19]} 23. Bxa7 {[%clk 0:01:16]}  Rxd1 {[%clk 0:00:19]} 24. Rxd1 {[%clk 0:01:14]}  Ra8 {[%clk 0:00:19]} 25. Bd4 {[%clk 0:00:51]}  Rd8 {[%clk 0:00:19]} 26. b4 {[%clk 0:00:51]}  Ne4 {[%clk 0:00:17]} 27. Kf1 {[%clk 0:00:44]}  Nc3 {[%clk 0:00:12]} 28. Rd2 {[%clk 0:00:23]}  Nxa2 {[%clk 0:00:12]} 29. Bc3 {[%clk 0:00:24]}  Ra8 {[%clk 0:00:11]} 30. Rc2 {[%clk 0:00:18]}  Nxc3 {[%clk 0:00:11]} 31. Rxc3 {[%clk 0:00:19]}  Ra6 {[%clk 0:00:12]} 32. Ke2 {[%clk 0:00:17]}  Rb6 {[%clk 0:00:12]} 33. Rc4 {[%clk 0:00:17]}  Kg7 {[%clk 0:00:12]} 34. g4 {[%clk 0:00:17]}  Kf6 {[%clk 0:00:12]} 35. Kf3 {[%clk 0:00:17]}  Ke5 {[%clk 0:00:12]} 36. Ke3 {[%clk 0:00:16]}  Ke6 {[%clk 0:00:08]} 37. Ke4 {[%clk 0:00:16]}  Kd6 {[%clk 0:00:07]} 38. g3 {[%clk 0:00:15]}  Rb5 {[%clk 0:00:06]} 39. f4 {[%clk 0:00:12]}  Rd5 {[%clk 0:00:06]} 40. Rc2 {[%clk 0:00:11]}  c5 {[%clk 0:00:05]} 41. bxc5+ {[%clk 0:00:09]}  Rxc5 {[%clk 0:00:06]} 42. Rh2 {[%clk 0:00:09]}  Rc4+ {[%clk 0:00:04]} 43. Kf5 {[%clk 0:00:08]}  Rc5+ {[%clk 0:00:03]} 44. Ke4 {[%clk 0:00:08]}  Rc4+ {[%clk 0:00:04]} 45. Kf5 {[%clk 0:00:08]}  Rc5+ {[%clk 0:00:04]} 46. Kf6 {[%clk 0:00:09]}  gxf4 {[%clk 0:00:03]} 47. gxf4 {[%clk 0:00:10]}  Rc4 {[%clk 0:00:04]} 48. Kf5 {[%clk 0:00:10]}  Rc5+ {[%clk 0:00:04]} 49. Ke4 {[%clk 0:00:10]}  Rc4+ {[%clk 0:00:05]} 50. Ke3 {[%clk 0:00:09]}  Rc3+ {[%clk 0:00:05]} 51. Kd4 {[%clk 0:00:10]}  Rf3 {[%clk 0:00:05]} 52. Ke4 {[%clk 0:00:10]}  Ra3 {[%clk 0:00:04]} 53. Rxh6+ {[%clk 0:00:10]}  Ke7 {[%clk 0:00:04]} 54. g5 {[%clk 0:00:10]}  Ra4+ {[%clk 0:00:04]} 55. Kf5 {[%clk 0:00:10]}  Ra5+ {[%clk 0:00:05]} 56. Kg4 {[%clk 0:00:11]}  Ra4 {[%clk 0:00:06]} 57. Rc6 {[%clk 0:00:10]}  Kd7 {[%clk 0:00:05]} 58. Rf6 {[%clk 0:00:10]}  Ke7 {[%clk 0:00:05]} 59. Rc6 {[%clk 0:00:10]}  Kd7 {[%clk 0:00:06]} 60. Rc2 {[%clk 0:00:11]}  Ra6 {[%clk 0:00:06]} 61. Kf5 {[%clk 0:00:10]}  Rd6 {[%clk 0:00:06]} 62. Ra2 {[%clk 0:00:09]}  c5 {[%clk 0:00:05]} 63. Ra7+ {[%clk 0:00:09]}  Ke8 {[%clk 0:00:04]} 64. Rc7 {[%clk 0:00:09]}  Rd5+ {[%clk 0:00:04]} 65. Kf6 {[%clk 0:00:08]}  Rd6+ {[%clk 0:00:04]} 66. Kg7 {[%clk 0:00:08]}  Rd5 {[%clk 0:00:01]} 67. Rxf7 {[%clk 0:00:04]}  c4 {[%clk 0:00:02]} 68. g6 {[%clk 0:00:03]}  c3 {[%clk 0:00:01]} 69. Rf8+ {[%clk 0:00:03]}  Kd7 {[%clk 0:00:02]} 70. Rf7+ {[%clk 0:00:04]}  Kc6 {[%clk 0:00:02]} 71. Rf8 {[%clk 0:00:04]}  Rd7+ {[%clk 0:00:03]} 72. Kg8 {[%clk 0:00:04]}  c2 {[%clk 0:00:04]} 73. Rc8+ {[%clk 0:00:04]}  Rc7 {[%clk 0:00:04]} 74. Rxc7+ {[%clk 0:00:04]}  Kxc7 {[%clk 0:00:05]} 75. g7 {[%clk 0:00:05]}  c1=Q {[%clk 0:00:06]} 76. Kh8 {[%clk 0:00:05]}  Qh1+ {[%clk 0:00:05]} 77. Kg8 {[%clk 0:00:06]}  Qd5+ {[%clk 0:00:06]} 78. Kh7 {[%clk 0:00:06]}  Qh5+ {[%clk 0:00:06]} 79. Kg8 {[%clk 0:00:06]}  Kd7 {[%clk 0:00:05]} 80. Kf8 {[%clk 0:00:06]}  Qf5+ {[%clk 0:00:05]} 81. Kg8 {[%clk 0:00:06]}  Ke7 {[%clk 0:00:05]} 82. Kh8 {[%clk 0:00:07]}  Qh5+ {[%clk 0:00:06]} 83. Kg8 {[%clk 0:00:07]}  Kf6 {[%clk 0:00:06]} 84. Kf8 {[%clk 0:00:07]}  Qf7# {[%clk 0:00:06]} 0-1


[Site "https://www.chess.com"]

[Event "Titled Tuesday Blitz August 24 2021"]
[White "Kekelidze, Mikheil"]
[Black "Ter-Sahakyan, Samvel"]
[WhiteFideId "13600818"]
[BlackFideId "13302531"]
[WhiteElo "2387"]
[BlackElo "2551"]
[Result "1-0"]
[Round "06"]
[TimeControl "180+1"]
[Date "2021.08.24"]
[WhiteClock "0:00:16"]
[BlackClock "0:00:01"]

1. d4 {[%clk 0:03:00]}  Nf6 {[%clk 0:02:59]} 2. c4 {[%clk 0:02:59]}  e6 {[%clk 0:02:59]} 3. Nc3 {[%clk 0:02:58]}  Bb4 {[%clk 0:02:58]} 4. Nf3 {[%clk 0:02:59]}  d5 {[%clk 0:02:58]} 5. g3 {[%clk 0:02:57]}  O-O {[%clk 0:02:57]} 6. Bg2 {[%clk 0:02:58]}  dxc4 {[%clk 0:02:57]} 7. a3 {[%clk 0:02:58]}  Bxc3+ {[%clk 0:02:56]} 8. bxc3 {[%clk 0:02:59]}  c5 {[%clk 0:02:57]} 9. O-O {[%clk 0:02:59]}  Nc6 {[%clk 0:02:57]} 10. Bg5 {[%clk 0:02:40]}  h6 {[%clk 0:02:52]} 11. Bh4 {[%clk 0:02:39]}  cxd4 {[%clk 0:02:41]} 12. cxd4 {[%clk 0:02:39]}  g5 {[%clk 0:02:30]} 13. Nxg5 {[%clk 0:02:39]}  hxg5 {[%clk 0:02:30]} 14. Bxg5 {[%clk 0:02:39]}  Kg7 {[%clk 0:02:31]} 15. Bxc6 {[%clk 0:02:24]}  bxc6 {[%clk 0:02:30]} 16. e4 {[%clk 0:02:25]}  Qa5 {[%clk 0:02:20]} 17. e5 {[%clk 0:02:16]}  Rg8 {[%clk 0:01:43]} 18. Bxf6+ {[%clk 0:02:07]}  Kf8 {[%clk 0:01:44]} 19. Qe1 {[%clk 0:01:58]}  Qxe1 {[%clk 0:01:24]} 20. Rfxe1 {[%clk 0:01:57]}  Rb8 {[%clk 0:01:23]} 21. h4 {[%clk 0:01:55]}  Rg4 {[%clk 0:01:21]} 22. h5 {[%clk 0:01:31]}  Rxd4 {[%clk 0:01:09]} 23. Rad1 {[%clk 0:01:25]}  c5 {[%clk 0:01:00]} 24. Rc1 {[%clk 0:00:35]}  Bb7 {[%clk 0:00:39]} 25. Red1 {[%clk 0:00:30]}  Bf3 {[%clk 0:00:32]} 26. Re1 {[%clk 0:00:26]}  Kg8 {[%clk 0:00:28]} 27. Re3 {[%clk 0:00:26]}  Rb3 {[%clk 0:00:24]} 28. Kh2 {[%clk 0:00:18]}  Kh7 {[%clk 0:00:08]} 29. Rcc3 {[%clk 0:00:17]}  Rxc3 {[%clk 0:00:06]} 30. Rxc3 {[%clk 0:00:16]}  Bxh5 {[%clk 0:00:06]} 31. f3 {[%clk 0:00:16]}  Bg6 {[%clk 0:00:06]} 32. g4 {[%clk 0:00:17]}  Bd3 {[%clk 0:00:05]} 33. Kg3 {[%clk 0:00:17]}  Rd7 {[%clk 0:00:03]} 34. Rc1 {[%clk 0:00:17]}  Rb7 {[%clk 0:00:02]} 35. Rh1+ {[%clk 0:00:17]}  Kg6 {[%clk 0:00:02]} 36. Kf4 {[%clk 0:00:16]}  Rb8 {[%clk 0:00:01]} 37. g5 {[%clk 0:00:16]} 1-0


[Site "https://www.chess.com"]

[Event "Titled Tuesday Blitz August 24 2021"]
[White "Kovalchuk94"]
[Black "Khodzhamkuliev, Bahadur"]
[BlackFideId "24135046"]
[WhiteElo "2601"]
[BlackElo "2130"]
[Result "1-0"]
[Round "06"]
[TimeControl "180+1"]
[Date "2021.08.24"]
[WhiteClock "0:00:11"]
[BlackClock "0:00:12"]

1. d4 {[%clk 0:03:00]}  c5 {[%clk 0:02:58]} 2. d5 {[%clk 0:02:58]}  d6 {[%clk 0:02:58]} 3. c4 {[%clk 0:02:57]}  e6 {[%clk 0:02:59]} 4. Nc3 {[%clk 0:02:57]}  e5 {[%clk 0:02:53]} 5. e4 {[%clk 0:02:56]}  g6 {[%clk 0:02:53]} 6. g3 {[%clk 0:02:56]}  Bg7 {[%clk 0:02:54]} 7. Bg2 {[%clk 0:02:56]}  a6 {[%clk 0:02:53]} 8. a4 {[%clk 0:02:56]}  Ne7 {[%clk 0:02:52]} 9. f4 {[%clk 0:02:55]}  O-O {[%clk 0:02:51]} 10. Nf3 {[%clk 0:02:55]}  exf4 {[%clk 0:02:50]} 11. gxf4 {[%clk 0:02:56]}  Bg4 {[%clk 0:02:45]} 12. Qd3 {[%clk 0:02:29]}  Bxf3 {[%clk 0:02:30]} 13. Qxf3 {[%clk 0:02:19]}  f5 {[%clk 0:02:28]} 14. O-O {[%clk 0:02:18]}  Nd7 {[%clk 0:02:26]} 15. Kh1 {[%clk 0:02:03]}  h6 {[%clk 0:02:11]} 16. Qd3 {[%clk 0:01:45]}  fxe4 {[%clk 0:02:05]} 17. Nxe4 {[%clk 0:01:42]}  Nf5 {[%clk 0:02:04]} 18. Bd2 {[%clk 0:01:42]}  Nf6 {[%clk 0:02:00]} 19. Rae1 {[%clk 0:01:25]}  Nxe4 {[%clk 0:01:51]} 20. Bxe4 {[%clk 0:01:26]}  Qh4 {[%clk 0:01:48]} 21. b3 {[%clk 0:01:21]}  Bd4 {[%clk 0:01:28]} 22. Bxf5 {[%clk 0:01:17]}  Rxf5 {[%clk 0:01:26]} 23. Re6 {[%clk 0:01:16]}  Rf6 {[%clk 0:01:11]} 24. Be1 {[%clk 0:00:48]}  Qh5 {[%clk 0:00:57]} 25. Rxf6 {[%clk 0:00:41]}  Bxf6 {[%clk 0:00:57]} 26. f5 {[%clk 0:00:40]}  Be5 {[%clk 0:00:55]} 27. Bg3 {[%clk 0:00:41]}  Re8 {[%clk 0:00:42]} 28. fxg6 {[%clk 0:00:36]}  Bxg3 {[%clk 0:00:36]} 29. Qxg3 {[%clk 0:00:37]}  Qe5 {[%clk 0:00:35]} 30. Qf3 {[%clk 0:00:25]}  Qe4 {[%clk 0:00:35]} 31. Qxe4 {[%clk 0:00:26]}  Rxe4 {[%clk 0:00:36]} 32. Rf6 {[%clk 0:00:26]}  Re1+ {[%clk 0:00:36]} 33. Kg2 {[%clk 0:00:26]}  Re2+ {[%clk 0:00:33]} 34. Kg1 {[%clk 0:00:25]}  Rb2 {[%clk 0:00:32]} 35. Rxd6 {[%clk 0:00:25]}  Rxb3 {[%clk 0:00:33]} 36. Rd7 {[%clk 0:00:24]}  b5 {[%clk 0:00:33]} 37. axb5 {[%clk 0:00:23]}  axb5 {[%clk 0:00:33]} 38. cxb5 {[%clk 0:00:22]}  Rxb5 {[%clk 0:00:34]} 39. Kf2 {[%clk 0:00:15]}  Rb6 {[%clk 0:00:33]} 40. d6 {[%clk 0:00:14]}  Rb3 {[%clk 0:00:25]} 41. Ke2 {[%clk 0:00:14]}  c4 {[%clk 0:00:25]} 42. Kd2 {[%clk 0:00:13]}  Rd3+ {[%clk 0:00:25]} 43. Kc2 {[%clk 0:00:13]}  h5 {[%clk 0:00:21]} 44. h4 {[%clk 0:00:14]}  Kf8 {[%clk 0:00:20]} 45. g7+ {[%clk 0:00:14]}  Kg8 {[%clk 0:00:20]} 46. Kb2 {[%clk 0:00:14]}  Rd4 {[%clk 0:00:19]} 47. Kc3 {[%clk 0:00:13]}  Rxh4 {[%clk 0:00:19]} 48. Re7 {[%clk 0:00:13]}  Rh1 {[%clk 0:00:10]} 49. d7 {[%clk 0:00:13]}  Rd1 {[%clk 0:00:11]} 50. Re8+ {[%clk 0:00:09]}  Kxg7 {[%clk 0:00:11]} 51. d8=Q {[%clk 0:00:10]}  Rxd8 {[%clk 0:00:11]} 52. Rxd8 {[%clk 0:00:11]}  Kf6 {[%clk 0:00:12]} 53. Kxc4 {[%clk 0:00:10]}  Kf5 {[%clk 0:00:12]} 54. Kd3 {[%clk 0:00:10]}  Kf4 {[%clk 0:00:12]} 55. Ke2 {[%clk 0:00:11]} 1-0


[Site "https://www.chess.com"]

[Event "Titled Tuesday Blitz August 24 2021"]
[White "Kuzubov, Yuriy"]
[Black "Wagh Suyog"]
[WhiteFideId "14112906"]
[BlackFideId "25071688"]
[WhiteElo "2564"]
[BlackElo "2219"]
[Result "1-0"]
[Round "06"]
[TimeControl "180+1"]
[Date "2021.08.24"]
[WhiteClock "0:00:20"]
[BlackClock "0:00:05"]

1. d4 {[%clk 0:03:00]}  Nf6 {[%clk 0:02:58]} 2. Nf3 {[%clk 0:03:00]}  d5 {[%clk 0:02:58]} 3. c4 {[%clk 0:03:01]}  e6 {[%clk 0:02:57]} 4. g3 {[%clk 0:03:00]}  Be7 {[%clk 0:02:56]} 5. Bg2 {[%clk 0:03:00]}  O-O {[%clk 0:02:57]} 6. O-O {[%clk 0:03:00]}  dxc4 {[%clk 0:02:57]} 7. Qc2 {[%clk 0:03:01]}  a6 {[%clk 0:02:58]} 8. a4 {[%clk 0:03:01]}  Bd7 {[%clk 0:02:58]} 9. Qxc4 {[%clk 0:03:01]}  Bc6 {[%clk 0:02:58]} 10. Bg5 {[%clk 0:03:01]}  Nbd7 {[%clk 0:02:56]} 11. Nc3 {[%clk 0:02:50]}  h6 {[%clk 0:02:56]} 12. Bxf6 {[%clk 0:02:48]}  Nxf6 {[%clk 0:02:56]} 13. Qd3 {[%clk 0:02:48]}  Bxf3 {[%clk 0:02:53]} 14. Bxf3 {[%clk 0:02:47]}  c6 {[%clk 0:02:54]} 15. Rfd1 {[%clk 0:02:41]}  a5 {[%clk 0:02:54]} 16. Qc2 {[%clk 0:02:39]}  Qb6 {[%clk 0:02:53]} 17. e3 {[%clk 0:02:36]}  Rfd8 {[%clk 0:02:53]} 18. Rac1 {[%clk 0:02:35]}  Rac8 {[%clk 0:02:53]} 19. Kg2 {[%clk 0:02:31]}  h5 {[%clk 0:02:51]} 20. h4 {[%clk 0:02:30]}  g6 {[%clk 0:02:51]} 21. Rd3 {[%clk 0:02:18]}  Kg7 {[%clk 0:02:48]} 22. Nb1 {[%clk 0:02:13]}  Nd5 {[%clk 0:02:15]} 23. Qe2 {[%clk 0:02:05]}  Nb4 {[%clk 0:02:10]} 24. Rdd1 {[%clk 0:02:00]}  c5 {[%clk 0:02:09]} 25. dxc5 {[%clk 0:02:00]}  Bxc5 {[%clk 0:02:07]} 26. Na3 {[%clk 0:01:55]}  Be7 {[%clk 0:01:57]} 27. Nb5 {[%clk 0:01:07]}  Bf6 {[%clk 0:01:53]} 28. Rxc8 {[%clk 0:00:55]}  Rxc8 {[%clk 0:01:51]} 29. Be4 {[%clk 0:00:55]}  Rd8 {[%clk 0:01:35]} 30. Rxd8 {[%clk 0:00:51]}  Bxd8 {[%clk 0:01:36]} 31. Qc4 {[%clk 0:00:49]}  Bf6 {[%clk 0:01:27]} 32. b3 {[%clk 0:00:49]}  Na6 {[%clk 0:01:21]} 33. Bf3 {[%clk 0:00:28]}  Nc5 {[%clk 0:01:14]} 34. g4 {[%clk 0:00:28]}  hxg4 {[%clk 0:01:07]} 35. Qxg4 {[%clk 0:00:29]}  Nxb3 {[%clk 0:00:38]} 36. h5 {[%clk 0:00:22]}  g5 {[%clk 0:00:29]} 37. Be2 {[%clk 0:00:22]}  Qc5 {[%clk 0:00:21]} 38. Bf3 {[%clk 0:00:21]}  b6 {[%clk 0:00:20]} 39. Qe4 {[%clk 0:00:21]}  Qf5 {[%clk 0:00:18]} 40. Qxf5 {[%clk 0:00:21]}  exf5 {[%clk 0:00:18]} 41. Bd1 {[%clk 0:00:21]}  Nc5 {[%clk 0:00:18]} 42. Bc2 {[%clk 0:00:19]}  f4 {[%clk 0:00:17]} 43. exf4 {[%clk 0:00:19]}  gxf4 {[%clk 0:00:18]} 44. Kf3 {[%clk 0:00:20]}  Bg5 {[%clk 0:00:18]} 45. Kg4 {[%clk 0:00:20]}  Bh6 {[%clk 0:00:18]} 46. f3 {[%clk 0:00:20]}  Kf6 {[%clk 0:00:19]} 47. Nd6 {[%clk 0:00:20]}  Bf8 {[%clk 0:00:13]} 48. Nc4 {[%clk 0:00:20]}  Bh6 {[%clk 0:00:12]} 49. Nxb6 {[%clk 0:00:20]}  Ke5 {[%clk 0:00:11]} 50. Nc4+ {[%clk 0:00:19]}  Kd4 {[%clk 0:00:12]} 51. Nxa5 {[%clk 0:00:19]}  Kc3 {[%clk 0:00:12]} 52. Bf5 {[%clk 0:00:19]}  Nxa4 {[%clk 0:00:12]} 53. Nc6 {[%clk 0:00:19]}  Nc5 {[%clk 0:00:12]} 54. Ne5 {[%clk 0:00:19]}  f6 {[%clk 0:00:08]} 55. Nf7 {[%clk 0:00:19]}  Bf8 {[%clk 0:00:08]} 56. h6 {[%clk 0:00:19]}  Kd2 {[%clk 0:00:06]} 57. h7 {[%clk 0:00:19]}  Bg7 {[%clk 0:00:07]} 58. Kxf4 {[%clk 0:00:20]}  Bh8 {[%clk 0:00:08]} 59. Nxh8 {[%clk 0:00:19]}  Ke2 {[%clk 0:00:05]} 60. Ng6 {[%clk 0:00:20]} 1-0


[Site "https://www.chess.com"]

[Event "Titled Tuesday Blitz August 24 2021"]
[White "Le, Tuan Minh"]
[Black "Idani, Pouya"]
[WhiteFideId "12401153"]
[BlackFideId "12510130"]
[WhiteElo "2450"]
[BlackElo "2610"]
[Result "1-0"]
[Round "06"]
[TimeControl "180+1"]
[Date "2021.08.24"]
[WhiteClock "0:00:50"]
[BlackClock "0:00:15"]

1. d4 {[%clk 0:03:00]}  Nf6 {[%clk 0:02:53]} 2. Nf3 {[%clk 0:03:00]}  g6 {[%clk 0:02:48]} 3. Bg5 {[%clk 0:03:00]}  Bg7 {[%clk 0:02:48]} 4. Nbd2 {[%clk 0:03:00]}  d5 {[%clk 0:02:37]} 5. c3 {[%clk 0:03:00]}  O-O {[%clk 0:02:36]} 6. e3 {[%clk 0:03:00]}  c5 {[%clk 0:02:35]} 7. Bd3 {[%clk 0:03:00]}  Nc6 {[%clk 0:02:35]} 8. O-O {[%clk 0:03:01]}  b6 {[%clk 0:02:10]} 9. Qe2 {[%clk 0:02:59]}  h6 {[%clk 0:01:50]} 10. Bh4 {[%clk 0:02:54]}  Bg4 {[%clk 0:01:49]} 11. h3 {[%clk 0:02:54]}  Bd7 {[%clk 0:01:40]} 12. Ne5 {[%clk 0:02:42]}  cxd4 {[%clk 0:01:21]} 13. exd4 {[%clk 0:02:25]}  Be8 {[%clk 0:01:07]} 14. Rfe1 {[%clk 0:02:12]}  e6 {[%clk 0:01:05]} 15. Qf3 {[%clk 0:01:39]}  g5 {[%clk 0:01:00]} 16. Bg3 {[%clk 0:01:39]}  Nxe5 {[%clk 0:01:01]} 17. Bxe5 {[%clk 0:01:38]}  Qe7 {[%clk 0:00:57]} 18. Re3 {[%clk 0:01:24]}  Rd8 {[%clk 0:00:54]} 19. Rae1 {[%clk 0:01:23]}  Bc6 {[%clk 0:00:54]} 20. h4 {[%clk 0:01:17]}  Nd7 {[%clk 0:00:52]} 21. Bc7 {[%clk 0:01:05]}  Rc8 {[%clk 0:00:49]} 22. Bh2 {[%clk 0:01:06]}  Qf6 {[%clk 0:00:41]} 23. Qg4 {[%clk 0:01:00]}  Qe7 {[%clk 0:00:21]} 24. hxg5 {[%clk 0:00:57]}  hxg5 {[%clk 0:00:19]} 25. Nf3 {[%clk 0:00:52]}  Bf6 {[%clk 0:00:15]} 26. Bf4 {[%clk 0:00:50]} 1-0


[Site "https://www.chess.com"]

[Event "Titled Tuesday Blitz August 24 2021"]
[White "MATHEUSMDR2005"]
[Black "Kononenko, Dmitry"]
[BlackFideId "14113538"]
[WhiteElo "2467"]
[BlackElo "2276"]
[Result "0-1"]
[Round "06"]
[TimeControl "180+1"]
[Date "2021.08.24"]
[WhiteClock "0:00:01"]
[BlackClock "0:01:15"]

1. c4 {[%clk 0:03:00]}  c5 {[%clk 0:02:59]} 2. Nf3 {[%clk 0:03:00]}  Nc6 {[%clk 0:02:59]} 3. g3 {[%clk 0:03:00]}  g6 {[%clk 0:02:58]} 4. Bg2 {[%clk 0:03:00]}  Bg7 {[%clk 0:02:59]} 5. O-O {[%clk 0:02:55]}  d6 {[%clk 0:02:59]} 6. Nc3 {[%clk 0:02:53]}  Bf5 {[%clk 0:02:59]} 7. b3 {[%clk 0:02:40]}  Qd7 {[%clk 0:02:58]} 8. Bb2 {[%clk 0:02:37]}  Bh3 {[%clk 0:02:58]} 9. e3 {[%clk 0:02:31]}  h5 {[%clk 0:02:56]} 10. d4 {[%clk 0:02:16]}  cxd4 {[%clk 0:02:53]} 11. exd4 {[%clk 0:01:47]}  Bxg2 {[%clk 0:02:45]} 12. Kxg2 {[%clk 0:01:46]}  h4 {[%clk 0:02:46]} 13. Rc1 {[%clk 0:01:14]}  hxg3 {[%clk 0:02:45]} 14. fxg3 {[%clk 0:01:15]}  Qh3+ {[%clk 0:02:44]} 15. Kg1 {[%clk 0:01:15]}  Nxd4 {[%clk 0:02:44]} 16. Rf2 {[%clk 0:00:57]}  Nf5 {[%clk 0:02:35]} 17. Qe2 {[%clk 0:00:45]}  Nxg3 {[%clk 0:02:23]} 18. Qd3 {[%clk 0:00:27]}  Nf5 {[%clk 0:02:15]} 19. Qd5 {[%clk 0:00:23]}  Nf6 {[%clk 0:02:04]} 20. Qxb7 {[%clk 0:00:20]}  O-O {[%clk 0:02:05]} 21. Nd5 {[%clk 0:00:10]}  Nxd5 {[%clk 0:02:01]} 22. Bxg7 {[%clk 0:00:11]}  Qg4+ {[%clk 0:01:38]} 23. Kh1 {[%clk 0:00:04]}  Qf4 {[%clk 0:01:36]} 24. Rcf1 {[%clk 0:00:04]}  Nde3 {[%clk 0:01:32]} 25. Bxf8 {[%clk 0:00:04]}  Rxf8 {[%clk 0:01:27]} 26. Ng1 {[%clk 0:00:03]}  Qh4 {[%clk 0:01:18]} 27. Qb8 {[%clk 0:00:01]}  Rxb8 {[%clk 0:01:15]} 0-1


[Site "https://www.chess.com"]

[Event "Titled Tuesday Blitz August 24 2021"]
[White "Machidon, Cristi"]
[Black "Pein, Jonathan"]
[WhiteFideId "13904590"]
[BlackFideId "417092"]
[WhiteElo "2312"]
[BlackElo "2167"]
[Result "1-0"]
[Round "06"]
[TimeControl "180+1"]
[Date "2021.08.24"]
[WhiteClock "0:02:31"]
[BlackClock "0:02:05"]

1. d4 {[%clk 0:03:00]}  Nf6 {[%clk 0:02:58]} 2. Bf4 {[%clk 0:03:00]}  e6 {[%clk 0:02:54]} 3. e3 {[%clk 0:02:59]}  d5 {[%clk 0:02:41]} 4. Nd2 {[%clk 0:02:58]}  Bd6 {[%clk 0:02:37]} 5. Bd3 {[%clk 0:02:56]}  O-O {[%clk 0:02:35]} 6. c3 {[%clk 0:02:54]}  Nc6 {[%clk 0:02:22]} 7. Ngf3 {[%clk 0:02:51]}  Bxf4 {[%clk 0:02:22]} 8. exf4 {[%clk 0:02:51]}  Ne7 {[%clk 0:02:19]} 9. O-O {[%clk 0:02:50]}  Ng6 {[%clk 0:02:19]} 10. g3 {[%clk 0:02:49]}  c5 {[%clk 0:02:18]} 11. dxc5 {[%clk 0:02:47]}  Qc7 {[%clk 0:02:15]} 12. b4 {[%clk 0:02:44]}  e5 {[%clk 0:02:15]} 13. Bxg6 {[%clk 0:02:44]}  hxg6 {[%clk 0:02:12]} 14. Nxe5 {[%clk 0:02:43]}  Bh3 {[%clk 0:02:11]} 15. Re1 {[%clk 0:02:42]}  Ne4 {[%clk 0:02:08]} 16. Nxe4 {[%clk 0:02:40]}  dxe4 {[%clk 0:02:09]} 17. Rxe4 {[%clk 0:02:39]}  Rad8 {[%clk 0:02:09]} 18. Rd4 {[%clk 0:02:39]}  Rde8 {[%clk 0:02:09]} 19. Qf3 {[%clk 0:02:34]}  Re7 {[%clk 0:02:05]} 20. g4 {[%clk 0:02:31]} 1-0


[Site "https://www.chess.com"]

[Event "Titled Tuesday Blitz August 24 2021"]
[White "Maevsky, Nikolay"]
[Black "Novikova, Galina"]
[WhiteFideId "4198220"]
[BlackFideId "4157095"]
[WhiteElo "2213"]
[BlackElo "1907"]
[Result "1-0"]
[Round "06"]
[TimeControl "180+1"]
[Date "2021.08.24"]
[WhiteClock "0:00:09"]
[BlackClock "0:00:01"]

1. d4 {[%clk 0:02:52]}  d5 {[%clk 0:02:57]} 2. Nf3 {[%clk 0:02:52]}  Nc6 {[%clk 0:02:55]} 3. c4 {[%clk 0:02:44]}  Bg4 {[%clk 0:02:56]} 4. Nc3 {[%clk 0:02:42]}  e6 {[%clk 0:02:49]} 5. Bf4 {[%clk 0:02:41]}  Nf6 {[%clk 0:02:48]} 6. e3 {[%clk 0:02:41]}  Bd6 {[%clk 0:02:48]} 7. Bg3 {[%clk 0:02:40]}  O-O {[%clk 0:02:47]} 8. Be2 {[%clk 0:02:40]}  Bxg3 {[%clk 0:02:35]} 9. hxg3 {[%clk 0:02:40]}  h6 {[%clk 0:02:35]} 10. O-O {[%clk 0:02:39]}  a6 {[%clk 0:02:26]} 11. cxd5 {[%clk 0:02:36]}  exd5 {[%clk 0:02:22]} 12. Rc1 {[%clk 0:02:36]}  Ne4 {[%clk 0:02:09]} 13. Nxe4 {[%clk 0:01:56]}  dxe4 {[%clk 0:02:09]} 14. Nd2 {[%clk 0:01:57]}  Bxe2 {[%clk 0:01:45]} 15. Qxe2 {[%clk 0:01:57]}  Re8 {[%clk 0:01:44]} 16. a3 {[%clk 0:01:54]}  Qd5 {[%clk 0:01:28]} 17. Rc5 {[%clk 0:01:50]}  Qd6 {[%clk 0:01:06]} 18. Rfc1 {[%clk 0:01:48]}  Rad8 {[%clk 0:01:06]} 19. b4 {[%clk 0:01:42]}  Rd7 {[%clk 0:01:01]} 20. Qg4 {[%clk 0:01:36]}  Rde7 {[%clk 0:00:48]} 21. Nb3 {[%clk 0:01:17]}  Na7 {[%clk 0:00:14]} 22. a4 {[%clk 0:00:58]}  Nc6 {[%clk 0:00:14]} 23. R1c4 {[%clk 0:00:45]}  Qd8 {[%clk 0:00:06]} 24. b5 {[%clk 0:00:42]}  axb5 {[%clk 0:00:06]} 25. axb5 {[%clk 0:00:42]}  Na7 {[%clk 0:00:05]} 26. Qf4 {[%clk 0:00:33]}  c6 {[%clk 0:00:03]} 27. bxc6 {[%clk 0:00:32]}  Nxc6 {[%clk 0:00:04]} 28. Rb5 {[%clk 0:00:25]}  Qa8 {[%clk 0:00:04]} 29. Nc5 {[%clk 0:00:18]}  Qa1+ {[%clk 0:00:04]} 30. Kh2 {[%clk 0:00:18]}  Qa2 {[%clk 0:00:02]} 31. Rc3 {[%clk 0:00:11]}  Nd8 {[%clk 0:00:01]} 32. Rcb3 {[%clk 0:00:09]} 1-0


[Site "https://www.chess.com"]